[Event "Croatian junior league 2021"]
[Site "Rabac"]
[Date "2021.04.06"]
[Round "2.20"]
[White "Damjanovic, Stjepan"]
[Black "Cotic, Borna"]
[Result "0-1"]
[ECO "B46"]
[WhiteElo "1890"]
[BlackElo "2120"]
[Annotator "ChessBase"]
[PlyCount "57"]
[EventDate "2021.04.06"]
[EventType "swiss"]
[EventCountry "CRO"]
[SourceTitle "playchess.com"]
[Source "ChessBase"]
[SourceQuality "1"]
[TimeControl "5400+30"]

1. e4 {[%emt 0:00:00]} c5 {[%emt 0:00:44]} 2. Nf3 {[%emt 0:00:00]} e6 {[%emt 0:00:43]} 3. d4 {[%emt 0:00:00]} cxd4 {[%emt 0:00:06]} 4. Nxd4 {[%emt 0:00:00]} Nc6 {[%emt 0:00:08]} 5. Nc3 {[%emt 0:00:04]} Qc7 {[%emt 0:00:07]} 6. f4 {[%emt 0:02:30]} a6 {[%emt 0:03:14]} 7. Nxc6 {[%emt 0:00:14]} bxc6 {[%emt 0:01:17]} 8. Bd3 {[%emt 0:00:36]} d5 {[%emt 0:02:13]} 9. O-O {[%emt 0:00:25]} Nf6 {[%emt 0:00:54]} 10. Kh1 {[%emt 0:00:42]} Be7 {[%emt 0:01:12]} 11. b3 {[%emt 0:01:00]} Bb7 {[%emt 0:03:34]} 12. Bb2 {[%emt 0:03:06]} c5 {[%emt 0:08:42]} 13. Qe2 {[%emt 0:11:55]} d4 {[%emt 0:19:52]} 14. Nb1 {[%emt 0:00:58]} O-O {[%emt 0:04:49]} 15. Nd2 {[%emt 0:05:03]} Nd7 {[%emt 0:03:48]} 16. e5 {[%emt 0:02:26]} Bd5 {[%emt 0:02:49]} 17. Ne4 {[%emt 0:06:48]} f5 {[%emt 0:17:40]} 18. exf6 {[%emt 0:09:55]} Bxf6 {[%emt 0:00:44]} 19. Qh5 {[%emt 0:05:56]} g6 {[%emt 0:02:52]} 20. Qh3 {[%emt 0:03:10]} Rae8 {[%emt 0:03:16]} 21. Rae1 {[%emt 0:14:53]} Qc6 {[%emt 0:05:27]} 22. c4 {[%emt 0:10:13]} Bxe4 {[%emt 0:01:44]} 23. Bxe4 {[%emt 0:01:53]} Qd6 {[%emt 0:01:48]} 24. Rf2 {[%emt 0:04:05]} Bg7 {[%emt 0:00:31]} 25. g3 {[%emt 0:01:04]} Nf6 {[%emt 0:00:49]} 26. Bg2 {[%emt 0:00:51]} e5 {[%emt 0:04:22]} 27. fxe5 {[%emt 0:02:38]} Re7 {[%emt 0:00:17]} 28. e6 Rxe6 {[%emt 0:00:31]} 29. Re5 {[%emt 0:03:38]} 0-1

[Event "Croatian junior league 2021"]
[Site "Rabac"]
[Date "2021.04.06"]
[Round "2.21"]
[White "Simunic, Krunoslav"]
[Black "Mandaric, Fran"]
[Result "1-0"]
[ECO "E11"]
[WhiteElo "1999"]
[BlackElo "1684"]
[Annotator "ChessBase"]
[PlyCount "49"]
[EventDate "2021.04.06"]
[EventType "swiss"]
[EventCountry "CRO"]
[SourceTitle "playchess.com"]
[Source "ChessBase"]
[SourceQuality "1"]
[TimeControl "5400+30"]

1. d4 {[%emt 0:00:00]} Nf6 {[%emt 0:00:00]} 2. c4 {[%emt 0:00:13]} e6 {[%emt 0:00:00]} 3. Nf3 {[%emt 0:00:23]} d5 {[%emt 0:00:35]} 4. g3 {[%emt 0:03:53]} Bb4+ {[%emt 0:05:35]} 5. Bd2 {[%emt 0:00:27]} Bxd2+ {[%emt 0:00:10]} 6. Qxd2 {[%emt 0:00:49]} O-O {[%emt 0:01:05]} 7. Bg2 {[%emt 0:01:02]} b6 {[%emt 0:02:14]} 8. Nc3 {[%emt 0:10:14]} Bb7 {[%emt 0:01:24]} 9. b3 {[%emt 0:08:24]} Nbd7 {[%emt 0:02:41]} 10. O-O {[%emt 0:01:48]} c5 {[%emt 0:02:14]} 11. e3 {[%emt 0:12:39]} Rc8 {[%emt 0:02:53]} 12. cxd5 {[%emt 0:02:41]} exd5 {[%emt 0:05:49]} 13. Rfd1 {[%emt 0:07:28]} Ne4 {[%emt 0:16:42]} 14. Nxe4 {[%emt 0:05:18]} dxe4 {[%emt 0:00:29]} 15. Ne5 {[%emt 0:01:36]} cxd4 {[%emt 0:05:51]} 16. Qxd4 {[%emt 0:09:47]} Nxe5 {[%emt 0:08:41]} 17. Qxe5 {[%emt 0:00:02]} Qc7 {[%emt 0:01:05]} 18. Qf5 {[%emt 0:06:44]} g6 {[%emt 0:04:27]} 19. Qf6 {[%emt 0:03:58]} Rfd8 {[%emt 0:09:42]} 20. Bh3 {[%emt 0:02:30]} Rxd1+ {[%emt 0:00:35]} 21. Rxd1 {[%emt 0:00:02]} Rf8 {[%emt 0:05:03]} 22. Bf1 {[%emt 0:03:38]} Rc8 {[%emt 0:07:19]} 23. Bb5 {[%emt 0:03:18]} Bc6 {[%emt 0:00:47]} 24. Bxc6 {[%emt 0:00:23]} Qxc6 {[%emt 0:00:50]} 25. Rd8+ {[%emt 0:00:04]} 1-0

[Event "Croatian junior league 2021"]
[Site "Rabac"]
[Date "2021.04.06"]
[Round "2.22"]
[White "Juric, Ester"]
[Black "Baric, Marko"]
[Result "0-1"]
[ECO "E53"]
[WhiteElo "1587"]
[BlackElo "1936"]
[Annotator "NA"]
[PlyCount "53"]
[EventDate "2021.04.06"]
[EventType "swiss"]
[EventCountry "CRO"]
[SourceTitle "playchess.com"]
[Source "ChessBase"]
[SourceQuality "1"]
[TimeControl "5400+30"]

1. d4 {[%emt 0:00:00]} Nf6 {[%emt 0:00:00]} 2. c4 {[%emt 0:00:00]} e6 {[%emt 0:00:00]} 3. Nc3 {[%emt 0:00:00]} Bb4 {[%emt 0:00:00]} 4. e3 {[%emt 0:00:00]} O-O {[%emt 0:00:00]} 5. Nf3 {[%emt 0:00:16]} d5 {[%emt 0:00:19]} 6. Bd3 {[%emt 0:01:09]} c5 {[%emt 0:00:12]} 7. a3 {[%emt 0:01:04]} cxd4 {[%emt 0:07:49]} 8. exd4 {[%emt 0:07:04]} Be7 {[%emt 0:02:21]} 9. c5 {[%emt 0:03:07]} b6 {[%emt 0:06:40]} 10. b4 {[%emt 0:01:01]} a5 {[%emt 0:12:22]} 11. Bb2 {[%emt 0:04:19]} bxc5 {[%emt 0:14:24]} 12. dxc5 {[%emt 0:01:14]} Na6 {[%emt 0:01:07]} 13. Bxa6 {[%emt 0:15:00]} Bxa6 {[%emt 0:01:12]} 14. b5 {[%emt 0:01:37]} Rb8 {[%emt 0:01:24]} 15. Qe2 {[%emt 0:06:44]} d4 {[%emt 0:05:55]} 16. Rd1 {[%emt 0:15:13]} dxc3 {[%emt 0:04:26]} 17. Rxd8 {[%emt 0:01:20]} Rfxd8 {[%emt 0:00:46]} 18. Bxc3 {[%emt 0:03:10]} Bxb5 {[%emt 0:01:19]} 19. Qc2 {[%emt 0:01:15]} Bd3 {[%emt 0:01:51]} 20. Qa2 {[%emt 0:00:34]} Rb1+ {[%emt 0:00:57]} 21. Qxb1 {[%emt 0:00:01]} Bxb1 {[%emt 0:00:02]} 22. Bxa5 {[%emt 0:00:31]} Rc8 {[%emt 0:03:25]} 23. O-O {[%emt 0:01:09]} Be4 {[%emt 0:02:18]} 24. a4 {[%emt 0:04:58]} Bxf3 {[%emt 0:01:10]} 25. gxf3 {[%emt 0:00:25]} Bxc5 {[%emt 0:00:24]} 26. Rb1 {[%emt 0:00:11]} Nd5 {[%emt 0:03:49]} 27. Rc1 {[%emt 0:00:59]} 0-1

[Event "Croatian junior league 2021"]
[Site "Rabac"]
[Date "2021.04.06"]
[Round "2.23"]
[White "Denic, Marin"]
[Black "Markovic, Marko"]
[Result "0-1"]
[ECO "B78"]
[WhiteElo "1914"]
[BlackElo "2232"]
[Annotator "ChessBase"]
[PlyCount "64"]
[EventDate "2021.04.06"]
[EventType "swiss"]
[EventCountry "CRO"]
[SourceTitle "playchess.com"]
[Source "ChessBase"]
[SourceQuality "1"]
[TimeControl "5400+30"]

1. e4 {[%emt 0:00:00]} c5 {[%emt 0:00:00]} 2. Nf3 {[%emt 0:00:00]} Nc6 {[%emt 0:00:00]} 3. d4 {[%emt 0:00:03]} cxd4 {[%emt 0:00:00]} 4. Nxd4 {[%emt 0:00:03]} g6 {[%emt 0:00:00]} 5. Nc3 {[%emt 0:00:15]} Bg7 {[%emt 0:00:04]} 6. Be3 {[%emt 0:00:07]} Nf6 {[%emt 0:00:05]} 7. Bc4 {[%emt 0:00:07]} O-O {[%emt 0:00:07]} 8. Bb3 {[%emt 0:00:04]} d6 {[%emt 0:02:33]} 9. f3 {[%emt 0:00:20]} Bd7 {[%emt 0:00:51]} 10. Qd2 {[%emt 0:02:03]} a6 {[%emt 0:03:19]} 11. O-O-O {[%emt 0:05:51]} b5 {[%emt 0:00:49]} 12. h4 {[%emt 0:04:09]} Nxd4 {[%emt 0:08:55]} 13. Bxd4 {[%emt 0:00:26]} a5 {[%emt 0:00:09]} 14. Nd5 {[%emt 0:12:49]} Nxd5 {[%emt 0:04:11]} 15. Bxd5 {[%emt 0:02:10]} Rc8 {[%emt 0:00:18]} 16. Bxg7 {[%emt 0:01:35]} Kxg7 {[%emt 0:02:22]} 17. Qd4+ {[%emt 0:41:29]} Kg8 {[%emt 0:02:42]} 18. c3 {[%emt 0:10:04]} b4 {[%emt 0:05:52]} 19. h5 {[%emt 0:03:41]} e6 {[%emt 0:04:20]} 20. f4 {[%emt 0:00:37]} e5 {[%emt 0:15:07]} 21. Qf2 {[%emt 0:08:22]} bxc3 {[%emt 0:03:17]} 22. b3 {[%emt 0:02:46]} Qf6 {[%emt 0:03:59]} 23. hxg6 {[%emt 0:01:15]} hxg6 {[%emt 0:00:33]} 24. Kc2 {[%emt 0:03:07]} exf4 {[%emt 0:11:00]} 25. g3 {[%emt 0:00:28]} Bg4 {[%emt 0:00:45]} 26. Rd3 {[%emt 0:00:34]} f3 {[%emt 0:01:18]} 27. Qh2 {[%emt 0:00:20]} Qg7 {[%emt 0:00:59]} 28. Qh4 {[%emt 0:00:16]} Be6 {[%emt 0:01:38]} 29. Rxf3 {[%emt 0:00:55]} Bxd5 {[%emt 0:00:53]} 30. exd5 {[%emt 0:00:01]} Rfe8 {[%emt 0:01:50]} 31. Rh2 {[%emt 0:00:36]} Re5 {[%emt 0:01:17]} 32. Rd3 {[%emt 0:00:54]} Rh5 {[%emt 0:00:37]} 0-1